[Event "MCC Labor Day Schev 2024"]
[Site "New York"]
[Date "2024.08.30"]
[Round "1.1"]
[White "Zhao, Alex"]
[Black "Nasta, Kiren Vivek"]
[Result "1/2-1/2"]
[ECO "A08"]
[WhiteElo "2043"]
[BlackElo "2148"]
[Annotator "RC"]
[PlyCount "78"]
[EventDate "2024.08.28"]
[EventType "schev"]
[EventCountry "USA"]
[SourceTitle "playchess.com"]
[Source "ChessBase"]
[SourceQuality "1"]
[TimeControl "5400+30"]

1. Nf3 {[%emt 0:00:05]} Nf6 {[%emt 0:00:13]} 2. g3 {[%emt 0:00:07]} g6 {[%emt 0:00:04]} 3. Bg2 {[%emt 0:00:05]} Bg7 {[%emt 0:00:04]} 4. O-O {[%emt 0:00:07]} O-O {[%emt 0:00:05]} 5. d3 {[%emt 0:00:04]} d5 {[%emt 0:00:15]} 6. Nbd2 {[%emt 0:00:18]} c5 {[%emt 0:00:46]} 7. e4 {[%emt 0:00:05]} Nc6 {[%emt 0:00:50]} 8. Re1 {[%emt 0:00:07]} e5 {[%emt 0:01:00]} 9. exd5 {[%emt 0:00:25]} Nxd5 {[%emt 0:00:06]} 10. Nc4 {[%emt 0:00:06]} f6 {[%emt 0:01:25]} 11. Nfd2 {[%emt 0:00:47]} Be6 {[%emt 0:01:49]} 12. Ne4 {[%emt 0:21:43]} Qe7 {[%emt 0:05:12]} 13. f4 {[%emt 0:06:52]} Rad8 {[%emt 0:06:56]} 14. fxe5 {[%emt 0:04:57]} fxe5 {[%emt 0:00:24]} 15. Bg5 {[%emt 0:12:31]} Nf6 {[%emt 0:00:18]} 16. Qc1 {[%emt 0:02:08]} Bxc4 {[%emt 0:13:06]} 17. dxc4 {[%emt 0:00:31]} Nd4 {[%emt 0:05:03]} 18. c3 {[%emt 0:06:41]} Ne6 {[%emt 0:03:51]} 19. Bxf6 {[%emt 0:11:06]} Bxf6 {[%emt 0:00:06]} 20. Nxf6+ {[%emt 0:06:40]} Qxf6 {[%emt 0:01:50]} 21. Qe3 {[%emt 0:06:03]} Ng5 {[%emt 0:04:57]} 22. Rf1 {[%emt 0:02:14]} Qe7 {[%emt 0:00:05]} 23. Bd5+ {[%emt 0:01:59]} Kg7 {[%emt 0:00:24]} 24. h4 {[%emt 0:00:57]} Nf7 {[%emt 0:00:31]} 25. Rae1 {[%emt 0:02:49]} Rde8 {[%emt 0:00:31]} 26. Bxf7 {[%emt 0:04:46]} Rxf7 {[%emt 0:00:06]} 27. Rxf7+ {[%emt 0:00:05]} Kxf7 {[%emt 0:01:01]} 28. Qe4 {[%emt 0:01:22]} Kg7 {[%emt 0:06:25]} 29. Rd1 {[%emt 0:02:05]} b6 {[%emt 0:02:57]} 30. Rd5 {[%emt 0:00:26]} Qe6 {[%emt 0:00:24]} 31. Kg2 {[%emt 0:00:59]} Qf5 {[%emt 0:02:33]} 32. Qxf5 {[%emt 0:01:51]} gxf5 {[%emt 0:00:05]} 33. Rd7+ {[%emt 0:00:02]} Kf6 {[%emt 0:01:43]} 34. Rxa7 {[%emt 0:06:27]} Rd8 {[%emt 0:42:25]} 35. b3 {[%emt 0:00:30]} Rd2+ {[%emt 0:00:30]} 36. Kf1 f4 {[%emt 0:00:30]} 37. gxf4 {[%emt 0:01:00]} exf4 38. Ra6 {[%emt 0:00:30]} Kf5 39. Rxb6 {[%emt 0:00:30]} Kg4 1/2-1/2

[Event "MCC Labor Day Schev 2024"]
[Site "New York"]
[Date "2024.08.30"]
[Round "1.3"]
[White "Aravindakshan, Sahana"]
[Black "Podavonov, Alisher"]
[Result "0-1"]
[ECO "E59"]
[WhiteElo "2003"]
[BlackElo "2140"]
[Annotator "RC"]
[PlyCount "111"]
[EventDate "2024.08.28"]
[EventType "schev"]
[EventCountry "USA"]
[SourceTitle "playchess.com"]
[Source "ChessBase"]
[SourceQuality "1"]
[TimeControl "5400+30"]

1. d4 {[%emt 0:00:01]} Nf6 {[%emt 0:00:27]} 2. c4 {[%emt 0:00:03]} e6 {[%emt 0:00:04]} 3. Nc3 {[%emt 0:00:04]} Bb4 {[%emt 0:00:20]} 4. e3 {[%emt 0:00:04]} O-O {[%emt 0:00:12]} 5. Bd3 {[%emt 0:00:04]} d5 {[%emt 0:00:10]} 6. a3 {[%emt 0:00:08]} Bxc3+ {[%emt 0:00:09]} 7. bxc3 {[%emt 0:00:03]} dxc4 {[%emt 0:00:07]} 8. Bxc4 {[%emt 0:00:04]} c5 {[%emt 0:00:05]} 9. Nf3 {[%emt 0:01:04]} Qc7 {[%emt 0:00:40]} 10. Be2 {[%emt 0:00:10]} Rd8 {[%emt 0:01:59]} 11. O-O {[%emt 0:11:00]} Nc6 {[%emt 0:00:24]} 12. c4 {[%emt 0:04:39]} b6 {[%emt 0:09:39]} 13. Bb2 {[%emt 0:02:33]} Ba6 {[%emt 0:04:30]} 14. Rc1 {[%emt 0:05:24]} Rac8 {[%emt 0:29:04]} 15. Qc2 {[%emt 0:25:09]} cxd4 {[%emt 0:03:32]} 16. exd4 {[%emt 0:00:43]} Qf4 {[%emt 0:00:41]} 17. Rfd1 {[%emt 0:16:33]} h6 {[%emt 0:13:16]} 18. g3 {[%emt 0:10:57]} Qe4 {[%emt 0:00:57]} 19. Qxe4 {[%emt 0:09:17]} Nxe4 {[%emt 0:00:04]} 20. Bd3 {[%emt 0:02:03]} Nd6 {[%emt 0:11:41]} 21. c5 {[%emt 0:02:36]} Bxd3 {[%emt 0:02:27]} 22. Rxd3 {[%emt 0:00:07]} Nf5 {[%emt 0:00:14]} 23. cxb6 {[%emt 0:04:53]} axb6 {[%emt 0:00:03]} 24. Rdc3 {[%emt 0:02:18]} Nce7 {[%emt 0:04:34]} 25. Rc7 {[%emt 0:02:24]} Rxc7 {[%emt 0:01:00]} 26. Rxc7 {[%emt 0:00:02]} Rc8 {[%emt 0:00:22]} 27. Rxc8+ {[%emt 0:00:46]} Nxc8 {[%emt 0:00:01]} 28. Ne5 {[%emt 0:00:46]} Ncd6 {[%emt 0:02:07]} 29. a4 {[%emt 0:00:31]} f6 {[%emt 0:01:24]} 30. Nd7 {[%emt 0:00:27]} Nc4 {[%emt 0:01:32]} 31. Bc3 {[%emt 0:00:22]} Kf7 {[%emt 0:00:18]} 32. Kf1 {[%emt 0:00:36]} Ke8 {[%emt 0:09:24]} 33. Nb8 {[%emt 0:00:05]} Ne7 {[%emt 0:00:15]} 34. Ke2 {[%emt 0:00:50]} Nd5 {[%emt 0:00:08]} 35. Kd3 {[%emt 0:00:29]} Nd6 {[%emt 0:00:09]} 36. f3 {[%emt 0:00:43]} Kd8 {[%emt 0:00:38]} 37. Nc6+ {[%emt 0:00:27]} Kd7 {[%emt 0:00:32]} 38. Nb4 {[%emt 0:00:31]} Nxb4+ {[%emt 0:00:08]} 39. Bxb4 {[%emt 0:00:07]} Nf7 {[%emt 0:02:05]} 40. a5 {[%emt 0:00:54]} bxa5 {[%emt 0:00:50]} 41. Bxa5 {[%emt 0:00:03]} Kc6 {[%emt 0:00:14]} 42. Bb4 {[%emt 0:00:52]} Kd5 {[%emt 0:01:07]} 43. f4 {[%emt 0:00:35]} f5 {[%emt 0:01:52]} 44. h3 {[%emt 0:00:30]} h5 {[%emt 0:00:47]} 45. Bf8 {[%emt 0:00:24]} g5 {[%emt 0:00:35]} 46. fxg5 {[%emt 0:00:37]} Nxg5 {[%emt 0:00:05]} 47. g4 {[%emt 0:00:30]} Nxh3 {[%emt 0:01:00]} 48. gxf5 {[%emt 0:00:30]} exf5 {[%emt 0:00:03]} 49. Ke3 {[%emt 0:00:11]} Ke6 {[%emt 0:03:05]} 50. Bh6 {[%emt 0:00:46]} Kf6 {[%emt 0:00:00]} 51. d5 {[%emt 0:00:32]} Ng5 {[%emt 0:00:00]} 52. d6 {[%emt 0:00:31]} Ne6 {[%emt 0:00:00]} 53. Kf3 {[%emt 0:00:27]} Kg6 {[%emt 0:00:55]} 54. Be3 {[%emt 0:00:31]} Nf8 {[%emt 0:00:19]} 55. Bd4 {[%emt 0:00:32]} Kg5 {[%emt 0:00:25]} 56. Bb6 {[%emt 0:01:02]} 0-1

[Event "MCC Labor Day Schev 2024"]
[Site "New York"]
[Date "2024.08.30"]
[Round "1.4"]
[White "Hoffman, Luc"]
[Black "Almeida Saenz, Alfonso"]
[Result "0-1"]
[ECO "D00"]
[WhiteElo "2067"]
[BlackElo "2202"]
[Annotator "RC"]
[PlyCount "70"]
[EventDate "2024.08.28"]
[EventType "schev"]
[EventCountry "USA"]
[SourceTitle "playchess.com"]
[Source "ChessBase"]
[SourceQuality "1"]
[TimeControl "5400+30"]

1. d4 {[%emt 0:00:34]} d5 {[%emt 0:00:17]} 2. Nc3 {[%emt 0:00:13]} Nf6 {[%emt 0:00:08]} 3. Bf4 {[%emt 0:00:05]} c6 {[%emt 0:02:02]} 4. e3 {[%emt 0:00:30]} Bf5 {[%emt 0:00:14]} 5. Bd3 {[%emt 0:02:19]} e6 {[%emt 0:00:48]} 6. Nf3 {[%emt 0:02:42]} Nbd7 {[%emt 0:02:22]} 7. Qe2 {[%emt 0:07:44]} Bb4 {[%emt 0:00:56]} 8. O-O {[%emt 0:06:22]} Bg6 {[%emt 0:00:45]} 9. Ne5 {[%emt 0:02:14]} Nxe5 {[%emt 0:01:44]} 10. Bxe5 {[%emt 0:01:06]} O-O {[%emt 0:00:49]} 11. Rfd1 {[%emt 0:03:50]} Rc8 {[%emt 0:01:47]} 12. Qf3 {[%emt 0:08:58]} Bxc3 {[%emt 0:02:59]} 13. bxc3 {[%emt 0:03:27]} Ne4 {[%emt 0:00:08]} 14. c4 {[%emt 0:01:41]} f6 {[%emt 0:01:55]} 15. Bg3 {[%emt 0:01:01]} Qe8 {[%emt 0:00:23]} 16. Qf4 {[%emt 0:23:30]} Bh5 {[%emt 0:01:37]} 17. Qh4 {[%emt 0:03:57]} Bxd1 {[%emt 0:05:32]} 18. Rxd1 {[%emt 0:03:45]} f5 {[%emt 0:00:31]} 19. Be5 {[%emt 0:01:37]} Qd8 {[%emt 0:02:34]} 20. Qh3 {[%emt 0:02:12]} Qg5 {[%emt 0:00:12]} 21. Bf4 {[%emt 0:01:08]} Qg4 {[%emt 0:00:09]} 22. Qxg4 {[%emt 0:00:14]} fxg4 {[%emt 0:00:01]} 23. Bxe4 {[%emt 0:00:20]} dxe4 {[%emt 0:00:07]} 24. Rb1 {[%emt 0:01:57]} b6 {[%emt 0:00:09]} 25. c5 {[%emt 0:00:58]} Rf5 {[%emt 0:00:20]} 26. Bd6 {[%emt 0:01:06]} bxc5 {[%emt 0:02:34]} 27. dxc5 {[%emt 0:00:19]} Rd5 {[%emt 0:00:08]} 28. g3 {[%emt 0:02:33]} Rd8 {[%emt 0:00:24]} 29. Rb7 {[%emt 0:00:35]} a5 {[%emt 0:00:07]} 30. Ra7 {[%emt 0:00:58]} h5 {[%emt 0:00:10]} 31. Re7 {[%emt 0:03:53]} Rd2 {[%emt 0:00:58]} 32. Ra7 {[%emt 0:01:24]} Rxc2 {[%emt 1:13:40]} 33. Rxa5 {[%emt 0:01:40]} Rd7 {[%emt 0:00:00]} 34. Ra8+ {[%emt 0:00:05]} Kh7 {[%emt 0:00:00]} 35. Rf8 {[%emt 0:02:07]} Rb7 {[%emt 0:00:00]} 0-1

[Event "MCC Labor Day Schev 2024"]
[Site "New York"]
[Date "2024.08.30"]
[Round "1.5"]
[White "Mottola, Max"]
[Black "Sarkar, Justin"]
[Result "1/2-1/2"]
[ECO "B90"]
[WhiteElo "2103"]
[BlackElo "2276"]
[Annotator "RC"]
[PlyCount "72"]
[EventDate "2024.08.28"]
[EventType "schev"]
[EventCountry "USA"]
[SourceTitle "playchess.com"]
[Source "ChessBase"]
[SourceQuality "1"]
[TimeControl "5400+30"]

1. e4 {[%emt 0:00:05]} c5 {[%emt 0:00:22]} 2. Nf3 {[%emt 0:00:08]} d6 {[%emt 0:00:18]} 3. d4 {[%emt 0:00:07]} cxd4 {[%emt 0:00:13]} 4. Nxd4 {[%emt 0:00:08]} Nf6 {[%emt 0:00:07]} 5. Nc3 {[%emt 0:00:06]} a6 {[%emt 0:00:39]} 6. a4 {[%emt 0:00:13]} e5 {[%emt 0:00:47]} 7. Nf3 {[%emt 0:00:09]} Be7 {[%emt 0:02:04]} 8. Bg5 {[%emt 0:02:30]} Be6 {[%emt 0:07:02]} 9. Bxf6 {[%emt 0:00:27]} Bxf6 {[%emt 0:00:05]} 10. Nd5 {[%emt 0:00:10]} Nd7 {[%emt 0:00:59]} 11. Bc4 {[%emt 0:00:08]} Nb6 {[%emt 0:27:04]} 12. Nxf6+ {[%emt 0:06:14]} Qxf6 {[%emt 0:02:40]} 13. Bxe6 {[%emt 0:00:18]} Qxe6 {[%emt 0:00:04]} 14. O-O {[%emt 0:00:23]} O-O {[%emt 0:00:08]} 15. Re1 {[%emt 0:04:29]} Rad8 {[%emt 0:01:19]} 16. a5 {[%emt 0:09:36]} Nc8 {[%emt 0:00:19]} 17. Qd3 {[%emt 0:16:38]} Ne7 {[%emt 0:02:30]} 18. Nd2 {[%emt 0:04:51]} d5 {[%emt 0:06:06]} 19. Qb3 {[%emt 0:06:02]} Qc6 {[%emt 0:03:54]} 20. exd5 {[%emt 0:02:27]} Rxd5 {[%emt 0:03:18]} 21. Nc4 {[%emt 0:03:23]} Ng6 {[%emt 0:00:24]} 22. Rad1 {[%emt 0:12:49]} Rfd8 {[%emt 0:05:01]} 23. Ne3 {[%emt 0:08:05]} Rxd1 {[%emt 0:05:43]} 24. Rxd1 {[%emt 0:01:10]} Rxd1+ {[%emt 0:00:04]} 25. Nxd1 {[%emt 0:00:08]} Nf4 {[%emt 0:00:07]} 26. Ne3 {[%emt 0:00:26]} Ne2+ {[%emt 0:14:10]} 27. Kf1 {[%emt 0:02:30]} Nd4 {[%emt 0:00:06]} 28. Qc4 {[%emt 0:01:31]} Qd7 {[%emt 0:02:01]} 29. Qc5 {[%emt 0:03:55]} f6 {[%emt 0:07:06]} 30. c3 {[%emt 0:04:59]} Ne6 {[%emt 0:03:10]} 31. Qc4 {[%emt 0:01:08]} Kf8 {[%emt 0:01:39]} 32. g3 {[%emt 0:01:35]} h5 {[%emt 0:01:46]} 33. Ke2 {[%emt 0:01:51]} Kf7 {[%emt 0:00:26]} 34. h4 {[%emt 0:02:34]} g6 {[%emt 0:01:19]} 35. Nd5 {[%emt 0:01:06]} Qd6 {[%emt 0:01:43]} 36. b4 {[%emt 0:01:50]} Kg7 {[%emt 0:00:07]} 1/2-1/2

[Event "MCC Labor Day Schev 2024"]
[Site "New York"]
[Date "2024.08.30"]
[Round "1.6"]
[White "Colas, Joshua"]
[Black "Shangin, Lev"]
[Result "1/2-1/2"]
[ECO "D35"]
[WhiteElo "2224"]
[BlackElo "1974"]
[Annotator "RC"]
[PlyCount "148"]
[EventDate "2024.08.28"]
[EventType "schev"]
[EventCountry "USA"]
[SourceTitle "playchess.com"]
[Source "ChessBase"]
[SourceQuality "1"]
[TimeControl "5400+30"]

1. Nf3 {[%emt 0:00:03]} Nf6 {[%emt 0:00:19]} 2. c4 {[%emt 0:00:20]} e6 {[%emt 0:00:20]} 3. g3 {[%emt 0:00:31]} d5 {[%emt 0:00:18]} 4. cxd5 {[%emt 0:00:16]} exd5 {[%emt 0:00:57]} 5. d4 {[%emt 0:00:08]} c6 {[%emt 0:01:32]} 6. Bg2 {[%emt 0:00:23]} Bd6 {[%emt 0:01:40]} 7. O-O {[%emt 0:00:21]} O-O {[%emt 0:01:21]} 8. Nc3 {[%emt 0:00:53]} Re8 {[%emt 0:02:15]} 9. Bf4 {[%emt 0:00:47]} Bf5 {[%emt 0:05:00]} 10. Qb3 {[%emt 0:02:42]} Bxf4 {[%emt 0:04:18]} 11. gxf4 {[%emt 0:06:01]} Qb6 {[%emt 0:07:13]} 12. Qa3 {[%emt 0:00:44]} Ne4 {[%emt 0:03:39]} 13. e3 {[%emt 0:00:50]} Qa6 {[%emt 0:03:57]} 14. Qxa6 {[%emt 0:03:20]} Nxa6 {[%emt 0:00:08]} 15. Nh4 {[%emt 0:00:32]} Nd6 {[%emt 0:02:34]} 16. Nxf5 {[%emt 0:00:42]} Nxf5 {[%emt 0:00:02]} 17. Rab1 {[%emt 0:00:27]} Nd6 {[%emt 0:01:14]} 18. b4 {[%emt 0:00:44]} Nc7 {[%emt 0:02:17]} 19. a4 {[%emt 0:00:07]} a6 {[%emt 0:00:16]} 20. Rfe1 {[%emt 0:00:54]} Re7 {[%emt 0:06:40]} 21. Bf1 {[%emt 0:00:24]} b5 {[%emt 0:01:38]} 22. Bd3 {[%emt 0:00:52]} f5 {[%emt 0:01:59]} 23. Ne2 {[%emt 0:03:23]} g6 {[%emt 0:03:11]} 24. Nc1 {[%emt 0:00:55]} Nc4 {[%emt 0:01:25]} 25. Nb3 {[%emt 0:00:34]} bxa4 {[%emt 0:11:17]} 26. Bxc4 {[%emt 0:00:45]} dxc4 {[%emt 0:00:03]} 27. Nc5 {[%emt 0:03:46]} Nd5 {[%emt 0:07:00]} 28. Rec1 {[%emt 0:00:52]} a5 {[%emt 0:01:41]} 29. b5 {[%emt 0:01:48]} Rb8 {[%emt 0:02:44]} 30. bxc6 {[%emt 0:16:26]} Rb4 {[%emt 0:03:51]} 31. Ra1 {[%emt 0:06:04]} Nb6 {[%emt 0:03:27]} 32. Rd1 {[%emt 0:02:37]} Nd5 {[%emt 0:03:08]} 33. Nxa4 {[%emt 0:01:13]} Rc7 {[%emt 0:01:00]} 34. Nc5 {[%emt 0:00:33]} Rb5 {[%emt 0:01:29]} 35. Rdc1 {[%emt 0:04:26]} c3 {[%emt 0:01:33]} 36. Kf1 {[%emt 0:04:48]} Rxc6 {[%emt 0:01:50]} 37. Ke2 {[%emt 0:00:11]} Rb2+ {[%emt 0:02:28]} 38. Kd3 {[%emt 0:02:51]} Rxf2 {[%emt 0:00:06]} 39. Rxa5 {[%emt 0:00:16]} Rd2+ {[%emt 0:01:26]} 40. Kc4 {[%emt 0:00:19]} Nxe3+ {[%emt 0:00:05]} 41. Kxc3 {[%emt 0:00:04]} Rxh2 {[%emt 0:00:05]} 42. Ra8+ {[%emt 0:00:45]} Kg7 {[%emt 0:00:06]} 43. Ra7+ {[%emt 0:00:05]} Kh6 {[%emt 0:00:15]} 44. Rd7 {[%emt 0:00:48]} Rh4 {[%emt 0:01:45]} 45. Re1 {[%emt 0:03:25]} Rh3 {[%emt 0:01:38]} 46. Kd2 {[%emt 0:01:39]} Nc4+ {[%emt 0:00:56]} 47. Kc2 {[%emt 0:00:27]} Ne3+ {[%emt 0:01:33]} 48. Kd2 {[%emt 0:00:07]} Nc4+ {[%emt 0:00:10]} 49. Kc2 {[%emt 0:00:06]} Rb6 {[%emt 0:01:57]} 50. Rb7 {[%emt 0:00:02]} Rxb7 {[%emt 0:00:50]} 51. Nxb7 {[%emt 0:00:02]} Ne3+ {[%emt 0:00:29]} 52. Kd2 {[%emt 0:03:25]} Nd5 {[%emt 0:00:04]} 53. Re5 {[%emt 0:00:44]} Nxf4 {[%emt 0:00:06]} 54. Nc5 {[%emt 0:00:02]} Rh2+ {[%emt 0:02:08]} 55. Kd1 {[%emt 0:03:19]} Ra2 {[%emt 0:00:30]} 56. d5 {[%emt 0:00:07]} Nxd5 {[%emt 0:02:09]} 57. Rxd5 {[%emt 0:01:45]} Kg5 {[%emt 0:00:05]} 58. Ke1 {[%emt 0:01:10]} h5 {[%emt 0:07:23]} 59. Ne6+ {[%emt 0:28:10]} Kf6 {[%emt 0:00:00]} 60. Nf4 {[%emt 0:00:00]} h4 {[%emt 0:00:00]} 61. Rb5 {[%emt 0:00:00]} g5 {[%emt 0:00:00]} 62. Nd5+ {[%emt 0:00:00]} Ke6 {[%emt 0:00:00]} 63. Nc7+ {[%emt 0:00:00]} Kd7 {[%emt 0:00:00]} 64. Rxf5 {[%emt 0:00:00]} Kxc7 {[%emt 0:00:00]} 65. Rxg5 {[%emt 0:00:00]} h3 {[%emt 0:00:00]} 66. Rh5 {[%emt 0:00:00]} h2 {[%emt 0:00:00]} 67. Kf1 {[%emt 0:00:00]} Kd6 {[%emt 0:00:00]} 68. Rh3 {[%emt 0:00:00]} Ke5 {[%emt 0:00:00]} 69. Rh8 {[%emt 0:00:00]} Kf4 {[%emt 0:00:00]} 70. Rf8+ {[%emt 0:05:30]} Ke3 {[%emt 0:00:00]} 71. Re8+ {[%emt 0:00:00]} Kf4 {[%emt 0:00:00]} 72. Rf8+ {[%emt 0:00:00]} Kg5 {[%emt 0:00:00]} 73. Rg8+ {[%emt 0:00:00]} Kf6 {[%emt 0:00:00]} 74. Rh8 {[%emt 0:00:00]} Ke5 {[%emt 0:00:03]} 1/2-1/2

[Event "MCC Labor Day Schev 2024"]
[Site "New York"]
[Date "2024.08.30"]
[Round "1.7"]
[White "Martin Del Campo Cardenas, Roberto Abel"]
[Black "Gaw, Chloe"]
[Result "1/2-1/2"]
[ECO "A09"]
[WhiteElo "2216"]
[BlackElo "1981"]
[Annotator "RC"]
[PlyCount "39"]
[EventDate "2024.08.28"]
[EventType "schev"]
[EventCountry "USA"]
[SourceTitle "playchess.com"]
[Source "ChessBase"]
[SourceQuality "1"]
[TimeControl "5400+30"]

1. Nf3 {[%emt 0:00:33]} c5 {[%emt 0:00:06]} 2. g3 {[%emt 0:00:42]} d5 {[%emt 0:00:17]} 3. Bg2 {[%emt 0:00:06]} Nc6 {[%emt 0:00:13]} 4. O-O {[%emt 0:00:09]} e5 {[%emt 0:00:12]} 5. d3 {[%emt 0:00:08]} Be7 {[%emt 0:00:05]} 6. c4 {[%emt 0:08:04]} d4 {[%emt 0:00:36]} 7. e3 {[%emt 0:01:35]} Nf6 {[%emt 0:01:08]} 8. exd4 {[%emt 0:01:12]} exd4 {[%emt 0:01:59]} 9. Re1 {[%emt 0:06:27]} O-O {[%emt 0:01:10]} 10. Bf4 {[%emt 0:09:46]} Bf5 {[%emt 0:02:50]} 11. Ne5 {[%emt 0:03:38]} Nxe5 {[%emt 0:03:00]} 12. Bxe5 {[%emt 0:00:12]} Qd7 {[%emt 0:06:25]} 13. Qf3 {[%emt 0:02:57]} Rae8 {[%emt 0:05:19]} 14. Nd2 {[%emt 0:05:02]} b6 {[%emt 0:03:51]} 15. Qc6 {[%emt 0:03:46]} Qxc6 {[%emt 0:06:35]} 16. Bxc6 {[%emt 0:00:18]} Rc8 {[%emt 0:04:20]} 17. Bb7 {[%emt 0:04:23]} Rce8 {[%emt 0:01:05]} 18. Bc6 {[%emt 0:26:54]} Rc8 {[%emt 0:00:28]} 19. Bb7 {[%emt 0:00:39]} Rce8 {[%emt 0:00:19]} 20. Bc6 {[%emt 0:02:58]} 1/2-1/2

[Event "MCC Labor Day Schev 2024"]
[Site "New York"]
[Date "2024.08.30"]
[Round "1.8"]
[White "Rohde, Michael"]
[Black "Patel, Maahir M"]
[Result "1-0"]
[ECO "A24"]
[WhiteElo "2280"]
[BlackElo "2005"]
[Annotator "RC"]
[PlyCount "57"]
[EventDate "2024.08.28"]
[EventType "schev"]
[EventCountry "USA"]
[SourceTitle "playchess.com"]
[Source "ChessBase"]
[SourceQuality "1"]
[TimeControl "5400+30"]

1. Nf3 {[%emt 0:00:03]} Nf6 {[%emt 0:00:08]} 2. c4 {[%emt 0:00:03]} g6 {[%emt 0:00:06]} 3. Nc3 {[%emt 0:00:03]} Bg7 {[%emt 0:00:03]} 4. e4 {[%emt 0:00:05]} e5 {[%emt 0:00:04]} 5. g3 {[%emt 0:01:08]} d6 {[%emt 0:00:12]} 6. Bg2 {[%emt 0:00:34]} O-O {[%emt 0:00:20]} 7. O-O {[%emt 0:00:45]} c5 {[%emt 0:00:07]} 8. d3 {[%emt 0:00:18]} Nc6 {[%emt 0:00:18]} 9. a3 {[%emt 0:00:11]} Ne8 {[%emt 0:01:27]} 10. Nd5 {[%emt 0:01:54]} Nc7 {[%emt 0:06:18]} 11. b4 {[%emt 0:03:53]} cxb4 {[%emt 0:07:44]} 12. Nxb4 {[%emt 0:01:00]} a5 {[%emt 0:01:55]} 13. Nd5 {[%emt 0:00:39]} Nxd5 {[%emt 0:02:58]} 14. cxd5 {[%emt 0:00:26]} Ne7 {[%emt 0:03:38]} 15. Rb1 {[%emt 0:00:28]} Rb8 {[%emt 0:00:58]} 16. d4 {[%emt 0:04:26]} f5 {[%emt 0:20:06]} 17. dxe5 {[%emt 0:01:13]} fxe4 {[%emt 0:00:40]} 18. Ng5 {[%emt 0:01:40]} Bxe5 {[%emt 0:04:12]} 19. Bxe4 {[%emt 0:00:35]} h6 {[%emt 0:04:08]} 20. Ne6 {[%emt 0:00:58]} Bxe6 {[%emt 0:00:08]} 21. dxe6 {[%emt 0:00:08]} d5 {[%emt 0:02:58]} 22. Bg2 {[%emt 0:00:26]} Kh7 {[%emt 0:00:59]} 23. Rb5 {[%emt 0:03:15]} Qd6 {[%emt 0:04:23]} 24. Bxd5 {[%emt 0:01:23]} Rfd8 {[%emt 0:10:19]} 25. Bf3 {[%emt 0:04:48]} Qc7 {[%emt 0:02:59]} 26. Qe2 {[%emt 0:02:38]} Bd6 {[%emt 0:00:13]} 27. Be3 {[%emt 0:01:43]} Qc3 {[%emt 0:03:34]} 28. Ba7 {[%emt 0:04:25]} Rbc8 {[%emt 0:01:40]} 29. a4 {[%emt 0:04:33]} 1-0

[Event "MCC Labor Day Schev 2024"]
[Site "New York"]
[Date "2024.08.30"]
[Round "1.9"]
[White "Khodzhamkuliev, Bahadur"]
[Black "Stern, Kevin B"]
[Result "1/2-1/2"]
[ECO "E04"]
[WhiteElo "2187"]
[BlackElo "1920"]
[Annotator "RC"]
[PlyCount "96"]
[EventDate "2024.08.28"]
[EventType "schev"]
[EventCountry "USA"]
[SourceTitle "playchess.com"]
[Source "ChessBase"]
[SourceQuality "1"]
[TimeControl "5400+30"]

1. Nf3 {[%emt 0:00:04]} d5 {[%emt 0:00:11]} 2. c4 {[%emt 0:00:07]} e6 {[%emt 0:00:05]} 3. d4 {[%emt 0:00:09]} Nf6 {[%emt 0:00:06]} 4. g3 {[%emt 0:00:13]} dxc4 {[%emt 0:00:28]} 5. Bg2 {[%emt 0:00:15]} c5 {[%emt 0:00:15]} 6. O-O {[%emt 0:00:17]} Nc6 {[%emt 0:00:05]} 7. Ne5 {[%emt 0:01:24]} Bd7 {[%emt 0:00:38]} 8. Nxc6 {[%emt 0:01:40]} Bxc6 {[%emt 0:00:16]} 9. Bxc6+ {[%emt 0:00:10]} bxc6 {[%emt 0:00:08]} 10. Qa4 {[%emt 0:02:40]} cxd4 {[%emt 0:05:37]} 11. Qxc6+ {[%emt 0:01:18]} Nd7 {[%emt 0:01:54]} 12. Nd2 {[%emt 0:07:10]} Rc8 {[%emt 0:03:00]} 13. Qa4 {[%emt 0:00:26]} Qc7 {[%emt 0:04:26]} 14. Nf3 {[%emt 0:09:47]} e5 {[%emt 0:06:19]} 15. Rd1 {[%emt 0:12:16]} Be7 {[%emt 0:14:23]} 16. b3 {[%emt 0:22:51]} O-O {[%emt 0:10:09]} 17. Qxc4 {[%emt 0:02:32]} Qxc4 {[%emt 0:06:56]} 18. bxc4 {[%emt 0:00:37]} Rxc4 {[%emt 0:00:40]} 19. e3 {[%emt 0:00:22]} Bf6 {[%emt 0:01:32]} 20. exd4 {[%emt 0:02:51]} e4 {[%emt 0:08:49]} 21. Nd2 {[%emt 0:04:32]} Rxd4 {[%emt 0:01:12]} 22. Bb2 {[%emt 0:00:15]} Ra4 {[%emt 0:01:48]} 23. Bxf6 {[%emt 0:02:59]} Nxf6 {[%emt 0:00:02]} 24. Nb3 {[%emt 0:00:26]} h6 {[%emt 0:01:59]} 25. Rd2 {[%emt 0:00:46]} Rc8 {[%emt 0:02:10]} 26. Rc1 {[%emt 0:00:40]} Rxc1+ {[%emt 0:00:47]} 27. Nxc1 {[%emt 0:00:04]} Ra5 {[%emt 0:03:39]} 28. Nb3 {[%emt 0:01:04]} Rd5 {[%emt 0:01:53]} 29. Kf1 {[%emt 0:00:31]} Rxd2 {[%emt 0:04:45]} 30. Nxd2 {[%emt 0:00:10]} e3 {[%emt 0:01:25]} 31. Nc4 {[%emt 0:01:21]} exf2 {[%emt 0:00:14]} 32. Kxf2 {[%emt 0:00:18]} Kf8 {[%emt 0:00:52]} 33. Ne5 {[%emt 0:00:56]} Ke8 {[%emt 0:02:29]} 34. Ke3 {[%emt 0:00:30]} Nd7 {[%emt 0:01:00]} 35. Nc6 {[%emt 0:00:22]} a6 {[%emt 0:00:06]} 36. Kd4 {[%emt 0:00:24]} g5 {[%emt 0:01:45]} 37. a4 {[%emt 0:04:12]} f5 {[%emt 0:02:34]} 38. a5 {[%emt 0:00:57]} f4 {[%emt 0:04:40]} 39. gxf4 {[%emt 0:00:32]} gxf4 {[%emt 0:00:14]} 40. Ke4 {[%emt 0:09:18]} Nc5+ {[%emt 0:00:58]} 41. Kxf4 {[%emt 0:00:18]} Kd7 {[%emt 0:05:02]} 42. Nb8+ {[%emt 0:01:00]} Kc7 {[%emt 0:02:02]} 43. Nxa6+ {[%emt 0:00:11]} Nxa6 {[%emt 0:00:01]} 44. Kg4 {[%emt 0:00:32]} Kd6 {[%emt 0:00:11]} 45. Kh5 {[%emt 0:00:16]} Ke6 {[%emt 0:00:06]} 46. Kxh6 {[%emt 0:00:32]} Kf6 {[%emt 0:05:39]} 47. Kh7 {[%emt 0:00:32]} Kf7 {[%emt 0:00:00]} 48. h4 {[%emt 0:00:11]} Nc5 {[%emt 0:00:00]} 1/2-1/2